[Event "Early-Titled-Tuesday-Blitz-May-14-2024"]
[Site "Chess.com"]
[Date "2024.05.14"]
[Round "2"]
[White "Tolyanius"]
[Black "AryanTari"]
[Result "0-1"]
[WhiteElo "2660"]
[BlackElo "3055"]
[TimeControl "180+1"]
[EndTime "8:18:38 PDT"]
[Termination "AryanTari won by resignation"]

1. e4 {[%clk 0:03:00.9]} 1... e5 {[%clk 0:02:51.2]} 2. Nf3 {[%clk 0:03:00.8]}
2... Nc6 {[%clk 0:02:49.4]} 3. Bc4 {[%clk 0:03:01.4]} 3... Nf6 {[%clk
0:02:49.4]} 4. d3 {[%clk 0:03:02]} 4... Bc5 {[%clk 0:02:49.2]} 5. c3 {[%clk
0:03:02.6]} 5... d6 {[%clk 0:02:49.1]} 6. Nbd2 {[%clk 0:03:03.4]} 6... a5 {[%clk
0:02:49.2]} 7. Bb3 {[%clk 0:03:04.2]} 7... O-O {[%clk 0:02:48.9]} 8. a4 {[%clk
0:03:04.9]} 8... Be6 {[%clk 0:02:45.7]} 9. Bc2 {[%clk 0:03:05.4]} 9... h6 {[%clk
0:02:36.3]} 10. h3 {[%clk 0:03:05.8]} 10... d5 {[%clk 0:02:36.1]} 11. Qe2 {[%clk
0:03:05.4]} 11... Re8 {[%clk 0:02:35.8]} 12. Kf1 {[%clk 0:03:05.2]} 12... d4
{[%clk 0:02:11.9]} 13. g3 {[%clk 0:02:58]} 13... Bf8 {[%clk 0:02:00.1]} 14. Kg2
{[%clk 0:02:58]} 14... Nd7 {[%clk 0:02:00.6]} 15. Nh4 {[%clk 0:02:47.4]} 15...
Nc5 {[%clk 0:02:00]} 16. c4 {[%clk 0:02:18.5]} 16... Nb4 {[%clk 0:01:54.8]} 17.
Nb3 {[%clk 0:02:17.6]} 17... Nbxd3 {[%clk 0:01:48.9]} 18. Bxd3 {[%clk
0:02:02.4]} 18... Nxb3 {[%clk 0:01:49.1]} 19. Rb1 {[%clk 0:02:01.9]} 19... Qd7
{[%clk 0:01:46.5]} 20. f4 {[%clk 0:01:59.9]} 20... exf4 {[%clk 0:01:36.1]} 21.
gxf4 {[%clk 0:02:00.1]} 21... f5 {[%clk 0:01:32.9]} 22. e5 {[%clk 0:01:53.6]}
22... Nc5 {[%clk 0:01:28]} 23. b3 {[%clk 0:01:49.2]} 23... Qf7 {[%clk
0:01:10.9]} 24. Kh2 {[%clk 0:01:27.7]} 24... Be7 {[%clk 0:01:10.4]} 25. Nf3
{[%clk 0:01:25.3]} 25... Rad8 {[%clk 0:01:10.5]} 26. Rg1 {[%clk 0:01:25]} 26...
Qh5 {[%clk 0:00:56.6]} 27. Bd2 {[%clk 0:01:23.5]} 27... Bf8 {[%clk 0:00:55.3]}
28. Bxa5 {[%clk 0:01:19.4]} 28... Ne4 {[%clk 0:00:41.9]} 29. Rbc1 {[%clk
0:00:57.7]} 29... c5 {[%clk 0:00:35.3]} 30. Bxd8 {[%clk 0:00:55.1]} 30... Rxd8
{[%clk 0:00:36.2]} 31. Rg3 {[%clk 0:00:51.5]} 31... Nxg3 {[%clk 0:00:35.3]} 32.
Kxg3 {[%clk 0:00:51.2]} 32... g5 {[%clk 0:00:34.2]} 33. Rg1 {[%clk 0:00:38.3]}
33... Be7 {[%clk 0:00:28.9]} 34. fxg5 {[%clk 0:00:25.6]} 34... f4+ {[%clk
0:00:23.7]} 35. Kf2 {[%clk 0:00:25.6]} 35... hxg5 {[%clk 0:00:21.2]} 36. Qe4
{[%clk 0:00:24.3]} 36... Bxh3 {[%clk 0:00:10.6]} 37. Qxb7 {[%clk 0:00:14.7]}
37... Re8 {[%clk 0:00:11]} 38. Qd5+ {[%clk 0:00:14.7]} 38... Kg7 {[%clk
0:00:10.3]} 39. e6 {[%clk 0:00:15.4]} 39... Bg4 {[%clk 0:00:08.2]} 40. Be2
{[%clk 0:00:14.4]} 40... Bf6 {[%clk 0:00:08.2]} 41. Nxg5 {[%clk 0:00:14.3]}
41... Qh4+ {[%clk 0:00:07.5]} 42. Kf1 {[%clk 0:00:11]} 42... Bxe2+ {[%clk
0:00:02.6]} 43. Kxe2 {[%clk 0:00:11.9]} 43... Qh2+ {[%clk 0:00:02.7]} 44. Rg2
{[%clk 0:00:12.2]} 44... f3+ {[%clk 0:00:02]} 45. Nxf3+ {[%clk 0:00:12.4]} 45...
Qxg2+ {[%clk 0:00:02.5]} 46. Kd3 {[%clk 0:00:13]} 46... Qg3 {[%clk 0:00:02]} 47.
Qd7+ {[%clk 0:00:13.9]} 47... Re7 {[%clk 0:00:02.3]} 48. Qd5 {[%clk 0:00:14.5]}
48... Qf4 {[%clk 0:00:03]} 49. Qe4 {[%clk 0:00:14.7]} 49... Qxe4+ {[%clk
0:00:03.5]} 50. Kxe4 {[%clk 0:00:15.6]} 50... Rxe6+ {[%clk 0:00:04.3]} 51. Kd5
{[%clk 0:00:16.5]} 51... Re3 {[%clk 0:00:05]} 52. Nd2 {[%clk 0:00:15.2]} 52...
Re2 {[%clk 0:00:05.7]} 53. Ne4 {[%clk 0:00:15.8]} 53... d3 {[%clk 0:00:06.5]}
54. Nc3 {[%clk 0:00:16]} 54... Bxc3 {[%clk 0:00:06.4]} 0-1

[Event "Early-Titled-Tuesday-Blitz-May-14-2024"]
[Site "Chess.com"]
[Date "2024.05.14"]
[Round "2"]
[White "aloe_normansen"]
[Black "Louis-Paulsen-Fan"]
[Result "1-0"]
[WhiteElo "2549"]
[BlackElo "2328"]
[TimeControl "180+1"]
[EndTime "8:18:38 PDT"]
[Termination "aloe_normansen won by resignation"]

1. e4 {[%clk 0:03:00.9]} 1... Nf6 {[%clk 0:02:59.2]} 2. e5 {[%clk 0:03:00.4]}
2... Nd5 {[%clk 0:02:59.4]} 3. d4 {[%clk 0:02:59.6]} 3... d6 {[%clk 0:02:59.4]}
4. Nf3 {[%clk 0:02:59.5]} 4... g6 {[%clk 0:02:59.3]} 5. Bc4 {[%clk 0:02:53.2]}
5... Nb6 {[%clk 0:02:59.5]} 6. Bb3 {[%clk 0:02:52.7]} 6... Bg7 {[%clk
0:03:00.1]} 7. Ng5 {[%clk 0:02:50.9]} 7... d5 {[%clk 0:03:00.2]} 8. h3 {[%clk
0:02:22.3]} 8... O-O {[%clk 0:02:58.6]} 9. O-O {[%clk 0:02:21.2]} 9... h6 {[%clk
0:02:35.1]} 10. Nf3 {[%clk 0:02:20.7]} 10... Na6 {[%clk 0:02:30.7]} 11. a4
{[%clk 0:02:17.7]} 11... Be6 {[%clk 0:02:21.9]} 12. c3 {[%clk 0:01:56.9]} 12...
c5 {[%clk 0:02:21.3]} 13. Na3 {[%clk 0:01:53.9]} 13... Rc8 {[%clk 0:02:18.5]}
14. Be3 {[%clk 0:01:52.2]} 14... cxd4 {[%clk 0:02:11.5]} 15. Nxd4 {[%clk
0:01:49.5]} 15... Qd7 {[%clk 0:02:02.5]} 16. a5 {[%clk 0:01:48.3]} 16... Nc4
{[%clk 0:01:56.8]} 17. Nxc4 {[%clk 0:01:43.1]} 17... dxc4 {[%clk 0:01:57.7]} 18.
Ba4 {[%clk 0:01:43.6]} 18... Qd5 {[%clk 0:01:16.4]} 19. Nxe6 {[%clk 0:01:38.6]}
19... Qxe6 {[%clk 0:01:08.7]} 20. Bd7 {[%clk 0:01:37.5]} 20... Qxe5 {[%clk
0:01:07]} 21. Bxc8 {[%clk 0:01:37]} 21... Rxc8 {[%clk 0:01:07.1]} 22. Bxa7
{[%clk 0:01:33.5]} 22... Nc5 {[%clk 0:01:03.6]} 23. Re1 {[%clk 0:01:30.8]} 23...
Qg5 {[%clk 0:01:00]} 24. Bxc5 {[%clk 0:01:27.6]} 24... Qxc5 {[%clk 0:00:48.6]}
25. Qd7 {[%clk 0:01:26.3]} 25... Rc7 {[%clk 0:00:46.1]} 26. Qe8+ {[%clk
0:01:24.1]} 26... Bf8 {[%clk 0:00:44.1]} 27. Rad1 {[%clk 0:01:17.4]} 27... Rc8
{[%clk 0:00:36.4]} 28. Rd8 {[%clk 0:01:13]} 28... Rxd8 {[%clk 0:00:34.4]} 29.
Qxd8 {[%clk 0:01:13.9]} 29... e6 {[%clk 0:00:28.9]} 30. Rd1 {[%clk 0:01:11.5]}
30... Qf5 {[%clk 0:00:17.5]} 31. Qb6 {[%clk 0:00:35.8]} 31... Bc5 {[%clk
0:00:13]} 32. Qd8+ {[%clk 0:00:33.4]} 32... Kg7 {[%clk 0:00:10.4]} 33. Rf1
{[%clk 0:00:33.4]} 33... Qc2 {[%clk 0:00:06.1]} 34. Qc7 {[%clk 0:00:31.8]} 34...
Qf5 {[%clk 0:00:03.5]} 35. Qxb7 {[%clk 0:00:30.8]} 35... g5 {[%clk 0:00:03.8]}
36. a6 {[%clk 0:00:30.1]} 36... h5 {[%clk 0:00:03.1]} 37. a7 {[%clk 0:00:29.5]}
37... g4 {[%clk 0:00:02.7]} 38. hxg4 {[%clk 0:00:25.8]} 38... hxg4 {[%clk
0:00:03]} 39. a8=Q {[%clk 0:00:20.2]} 39... g3 {[%clk 0:00:03.4]} 40. Qf3 {[%clk
0:00:17.9]} 40... gxf2+ {[%clk 0:00:02.9]} 41. Rxf2 {[%clk 0:00:16]} 41... Qb1+
{[%clk 0:00:02.8]} 42. Kh2 {[%clk 0:00:14.1]} 42... Qh7+ {[%clk 0:00:03.4]} 43.
Qh3 {[%clk 0:00:12.5]} 43... Qg6 {[%clk 0:00:00.5]} 1-0

[Event "Early-Titled-Tuesday-Blitz-May-14-2024"]
[Site "Chess.com"]
[Date "2024.05.14"]
[Round "2"]
[White "LionKing2367890"]
[Black "Hasangatin_Ramil"]
[Result "1-0"]
[WhiteElo "2248"]
[BlackElo "2678"]
[TimeControl "180+1"]
[EndTime "8:18:40 PDT"]
[Termination "LionKing2367890 won on time"]

1. e4 {[%clk 0:03:00.9]} 1... d5 {[%clk 0:02:58.3]} 2. exd5 {[%clk 0:02:59.9]}
2... Qxd5 {[%clk 0:02:59.2]} 3. Nc3 {[%clk 0:02:59.5]} 3... Qd6 {[%clk
0:02:37.9]} 4. Nf3 {[%clk 0:02:58.5]} 4... Nf6 {[%clk 0:02:38]} 5. d4 {[%clk
0:02:58.4]} 5... c6 {[%clk 0:02:37.9]} 6. Bc4 {[%clk 0:02:57.4]} 6... Bg4 {[%clk
0:02:37.7]} 7. Be3 {[%clk 0:02:56]} 7... Nbd7 {[%clk 0:02:36.1]} 8. O-O {[%clk
0:02:55]} 8... e6 {[%clk 0:02:34]} 9. h3 {[%clk 0:02:54.8]} 9... Bh5 {[%clk
0:02:24.6]} 10. Be2 {[%clk 0:02:54.7]} 10... Qc7 {[%clk 0:02:24.5]} 11. Qd2
{[%clk 0:02:45.6]} 11... Bd6 {[%clk 0:02:24.2]} 12. Ng5 {[%clk 0:02:37.6]} 12...
Bg6 {[%clk 0:02:21.3]} 13. f3 {[%clk 0:02:33.2]} 13... O-O {[%clk 0:02:13.8]}
14. Nge4 {[%clk 0:02:32.3]} 14... Bb4 {[%clk 0:02:09.9]} 15. Bd3 {[%clk
0:02:26.4]} 15... Rad8 {[%clk 0:02:06]} 16. a3 {[%clk 0:02:25.7]} 16... Bxc3
{[%clk 0:01:52.5]} 17. bxc3 {[%clk 0:02:25.2]} 17... Nd5 {[%clk 0:01:48.1]} 18.
Bg5 {[%clk 0:02:15.9]} 18... f6 {[%clk 0:01:30.1]} 19. Bh4 {[%clk 0:02:15.6]}
19... b5 {[%clk 0:01:28.8]} 20. Bg3 {[%clk 0:02:10.7]} 20... Qb6 {[%clk
0:01:27.6]} 21. Bd6 {[%clk 0:02:07.6]} 21... Rfe8 {[%clk 0:01:24.1]} 22. Nc5
{[%clk 0:02:00.4]} 22... Nxc5 {[%clk 0:01:21.3]} 23. dxc5 {[%clk 0:02:00.4]}
23... Qb7 {[%clk 0:01:17.3]} 24. Bxg6 {[%clk 0:02:00.2]} 24... hxg6 {[%clk
0:01:13.8]} 25. Qd3 {[%clk 0:01:57.9]} 25... Qf7 {[%clk 0:01:10.9]} 26. c4
{[%clk 0:01:51.6]} 26... bxc4 {[%clk 0:01:10.9]} 27. Qxc4 {[%clk 0:01:48.8]}
27... e5 {[%clk 0:01:11.8]} 28. Qa4 {[%clk 0:01:40.6]} 28... Rc8 {[%clk
0:01:03.6]} 29. Rab1 {[%clk 0:01:39.8]} 29... Nc3 {[%clk 0:01:03.6]} 30. Qb3
{[%clk 0:01:33.4]} 30... Nxb1 {[%clk 0:01:01.7]} 31. Qxf7+ {[%clk 0:01:32.9]}
31... Kxf7 {[%clk 0:01:01.3]} 32. Rxb1 {[%clk 0:01:33.8]} 32... Ke6 {[%clk
0:00:50.8]} 33. Rb7 {[%clk 0:01:32.8]} 33... a5 {[%clk 0:00:51.1]} 34. Rxg7
{[%clk 0:01:32.1]} 34... g5 {[%clk 0:00:51]} 35. Ra7 {[%clk 0:01:23.8]} 35...
Ra8 {[%clk 0:00:50.4]} 36. Rc7 {[%clk 0:01:22.9]} 36... Rec8 {[%clk 0:00:49.2]}
37. Re7+ {[%clk 0:01:22.3]} 37... Kd5 {[%clk 0:00:49.7]} 38. Rf7 {[%clk
0:01:21]} 38... Re8 {[%clk 0:00:38.5]} 39. Rxf6 {[%clk 0:01:18.4]} 39... e4
{[%clk 0:00:39]} 40. Rf5+ {[%clk 0:01:15.1]} 40... Kc4 {[%clk 0:00:38.8]} 41.
fxe4 {[%clk 0:01:05.3]} 41... Rxe4 {[%clk 0:00:39.7]} 42. Rxg5 {[%clk
0:01:05.9]} 42... Re3 {[%clk 0:00:39.8]} 43. a4 {[%clk 0:01:01.6]} 43... Ra3
{[%clk 0:00:35.7]} 44. Rg4+ {[%clk 0:01:01.6]} 44... Kc3 {[%clk 0:00:35.9]} 45.
h4 {[%clk 0:01:01]} 45... Re8 {[%clk 0:00:19.5]} 46. h5 {[%clk 0:00:58.5]} 46...
Re6 {[%clk 0:00:19.5]} 47. Rh4 {[%clk 0:00:55.4]} 47... Rh6 {[%clk 0:00:19.3]}
48. g4 {[%clk 0:00:55.5]} 48... Kxc2 {[%clk 0:00:16.9]} 49. g5 {[%clk
0:00:55.7]} 49... Re6 {[%clk 0:00:14.5]} 50. h6 {[%clk 0:00:51.7]} 50... Re2
{[%clk 0:00:13.9]} 51. Rf4 {[%clk 0:00:36.5]} 51... Rg3+ {[%clk 0:00:04.6]} 52.
Kf1 {[%clk 0:00:35.8]} 52... Rgg2 {[%clk 0:00:05]} 53. h7 {[%clk 0:00:30.6]} 1-0

[Event "Early-Titled-Tuesday-Blitz-May-14-2024"]
[Site "Chess.com"]
[Date "2024.05.14"]
[Round "2"]
[White "rionelG"]
[Black "DishonorOnYourCow"]
[Result "1/2-1/2"]
[WhiteElo "2273"]
[BlackElo "2510"]
[TimeControl "180+1"]
[EndTime "8:18:40 PDT"]
[Termination "Game drawn by repetition"]

1. e4 {[%clk 0:03:00.9]} 1... c5 {[%clk 0:02:59.6]} 2. Nf3 {[%clk 0:03:00]} 2...
d6 {[%clk 0:02:59.9]} 3. d4 {[%clk 0:03:00.1]} 3... cxd4 {[%clk 0:03:00.5]} 4.
Nxd4 {[%clk 0:02:59.4]} 4... Nf6 {[%clk 0:03:01.1]} 5. Nc3 {[%clk 0:03:00]} 5...
a6 {[%clk 0:03:01.6]} 6. Bg5 {[%clk 0:03:00.6]} 6... e6 {[%clk 0:02:59.1]} 7. f4
{[%clk 0:02:59.9]} 7... h6 {[%clk 0:02:58.9]} 8. Bh4 {[%clk 0:03:00.1]} 8... Qb6
{[%clk 0:02:58.7]} 9. Qd2 {[%clk 0:02:59.7]} 9... Qxb2 {[%clk 0:02:55.1]} 10.
Rb1 {[%clk 0:03:00]} 10... Qa3 {[%clk 0:02:53.3]} 11. e5 {[%clk 0:03:00.3]}
11... dxe5 {[%clk 0:02:53]} 12. fxe5 {[%clk 0:03:01.2]} 12... Nfd7 {[%clk
0:02:53.5]} 13. Ne4 {[%clk 0:02:57.5]} 13... Qxa2 {[%clk 0:02:53.6]} 14. Rd1
{[%clk 0:02:57.8]} 14... Qd5 {[%clk 0:02:53]} 15. Qe3 {[%clk 0:02:58.4]} 15...
Qxe5 {[%clk 0:02:51.6]} 16. c3 {[%clk 0:02:59]} 16... Bc5 {[%clk 0:02:42.3]} 17.
Bg3 {[%clk 0:02:58.8]} 17... Bxd4 {[%clk 0:02:16.4]} 18. Rxd4 {[%clk 0:02:35.6]}
18... Qa5 {[%clk 0:02:12.3]} 19. Bd6 {[%clk 0:02:17.5]} 19... Nc6 {[%clk
0:01:58.7]} 20. Rd2 {[%clk 0:01:56.1]} 20... Nf6 {[%clk 0:01:36]} 21. Nxf6+
{[%clk 0:01:48.5]} 21... gxf6 {[%clk 0:01:36.3]} 22. Bc5 {[%clk 0:01:45.6]}
22... Bd7 {[%clk 0:01:14.2]} 23. Be2 {[%clk 0:01:32.2]} 23... O-O-O {[%clk
0:00:42.6]} 24. Bb6 {[%clk 0:01:31.7]} 24... Qe5 {[%clk 0:00:30.7]} 25. Qh3
{[%clk 0:01:15.8]} 25... Rdg8 {[%clk 0:00:18.4]} 26. O-O {[%clk 0:01:13.3]}
26... Ne7 {[%clk 0:00:17.8]} 27. Qd3 {[%clk 0:00:39.1]} 27... Bc6 {[%clk
0:00:17.4]} 28. Bf3 {[%clk 0:00:35.9]} 28... Nd5 {[%clk 0:00:14.6]} 29. Bd4
{[%clk 0:00:28.9]} 29... Qg5 {[%clk 0:00:14]} 30. Rb2 {[%clk 0:00:25.4]} 30...
Nf4 {[%clk 0:00:12.3]} 31. Qe3 {[%clk 0:00:21.2]} 31... Nh3+ {[%clk 0:00:09.7]}
32. Kh1 {[%clk 0:00:21.1]} 32... Qxe3 {[%clk 0:00:10.3]} 33. Bxe3 {[%clk
0:00:20.5]} 33... Bxf3 {[%clk 0:00:10]} 34. Rxf3 {[%clk 0:00:17.3]} 34... Ng5
{[%clk 0:00:09.9]} 35. Rxf6 {[%clk 0:00:17]} 35... Rd8 {[%clk 0:00:10.3]} 36.
Bd4 {[%clk 0:00:16.2]} 36... e5 {[%clk 0:00:09.9]} 37. Bg1 {[%clk 0:00:13.1]}
37... Rd1 {[%clk 0:00:07.2]} 38. h4 {[%clk 0:00:12.8]} 38... Ne4 {[%clk
0:00:07.1]} 39. Rxf7 {[%clk 0:00:12.8]} 39... Rg8 {[%clk 0:00:04]} 40. Rbxb7
{[%clk 0:00:11.9]} 40... Ng3+ {[%clk 0:00:04.3]} 41. Kh2 {[%clk 0:00:11.6]}
41... Nf1+ {[%clk 0:00:05.2]} 42. Kh1 {[%clk 0:00:09.4]} 42... Ng3+ {[%clk
0:00:05.4]} 43. Kh2 {[%clk 0:00:09.7]} 43... Nf1+ {[%clk 0:00:01.5]} 44. Kh1
{[%clk 0:00:09.6]} 44... Ng3+ {[%clk 0:00:01.3]} 1/2-1/2

[Event "Early-Titled-Tuesday-Blitz-May-14-2024"]
[Site "Chess.com"]
[Date "2024.05.14"]
[Round "2"]
[White "vasblesk"]
[Black "ReinisUz"]
[Result "1-0"]
[WhiteElo "2811"]
[BlackElo "2413"]
[TimeControl "180+1"]
[EndTime "8:18:43 PDT"]
[Termination "vasblesk won by resignation"]

1. d4 {[%clk 0:03:00.9]} 1... d5 {[%clk 0:02:59.7]} 2. Nf3 {[%clk 0:03:00.6]}
2... c6 {[%clk 0:03:00.2]} 3. g3 {[%clk 0:03:00.9]} 3... Nf6 {[%clk 0:03:00.6]}
4. Bg2 {[%clk 0:03:01.3]} 4... Bf5 {[%clk 0:03:01.2]} 5. O-O {[%clk 0:03:02.1]}
5... e6 {[%clk 0:03:01.5]} 6. c4 {[%clk 0:03:02.7]} 6... Be7 {[%clk 0:03:01.7]}
7. Qb3 {[%clk 0:03:00.4]} 7... Qb6 {[%clk 0:03:01]} 8. Nc3 {[%clk 0:03:00.5]}
8... Nbd7 {[%clk 0:02:58.9]} 9. c5 {[%clk 0:03:00.3]} 9... Qxb3 {[%clk
0:02:58.5]} 10. axb3 {[%clk 0:03:01.2]} 10... a6 {[%clk 0:02:57.9]} 11. b4
{[%clk 0:03:01.7]} 11... O-O {[%clk 0:02:57.7]} 12. h3 {[%clk 0:02:54.1]} 12...
Bg6 {[%clk 0:02:50.4]} 13. g4 {[%clk 0:02:52.3]} 13... Rfe8 {[%clk 0:02:47.2]}
14. Bf4 {[%clk 0:02:51.4]} 14... Ne4 {[%clk 0:02:46.4]} 15. Na4 {[%clk
0:02:28.9]} 15... Bf6 {[%clk 0:02:43.2]} 16. e3 {[%clk 0:02:22.3]} 16... e5
{[%clk 0:02:39.7]} 17. dxe5 {[%clk 0:02:22]} 17... Nxe5 {[%clk 0:02:39.7]} 18.
Bxe5 {[%clk 0:02:21.1]} 18... Bxe5 {[%clk 0:02:40.4]} 19. Nxe5 {[%clk 0:02:22]}
19... Rxe5 {[%clk 0:02:40.8]} 20. f4 {[%clk 0:02:22.7]} 20... Ree8 {[%clk
0:02:34]} 21. f5 {[%clk 0:02:22.2]} 21... Nd2 {[%clk 0:02:26.1]} 22. Rf2 {[%clk
0:02:06.7]} 22... Nc4 {[%clk 0:02:23.5]} 23. fxg6 {[%clk 0:02:06]} 23... hxg6
{[%clk 0:02:22.4]} 24. Re1 {[%clk 0:02:05.8]} 24... Re7 {[%clk 0:02:16.5]} 25.
e4 {[%clk 0:02:03.5]} 25... Rae8 {[%clk 0:02:14.5]} 26. Rfe2 {[%clk 0:02:02.8]}
26... d4 {[%clk 0:02:14.2]} 27. Rd1 {[%clk 0:02:02.5]} 27... Rd8 {[%clk
0:02:05.3]} 28. b3 {[%clk 0:01:59.3]} 28... Ne5 {[%clk 0:02:02.5]} 29. Nb2
{[%clk 0:01:54.7]} 29... d3 {[%clk 0:01:59.6]} 30. Red2 {[%clk 0:01:54.4]} 30...
Rd4 {[%clk 0:01:54.4]} 31. Kf2 {[%clk 0:01:44.6]} 31... Red7 {[%clk 0:01:50.3]}
32. Bf1 {[%clk 0:01:37.1]} 32... Rxb4 {[%clk 0:01:46]} 33. Nxd3 {[%clk
0:01:35.9]} 33... Nxd3+ {[%clk 0:01:34.8]} 34. Rxd3 {[%clk 0:01:36.8]} 34... Re7
{[%clk 0:01:33.6]} 35. Bg2 {[%clk 0:01:35.6]} 35... Re5 {[%clk 0:01:32.4]} 36.
Rc1 {[%clk 0:01:32.6]} 36... g5 {[%clk 0:01:25]} 37. Ke3 {[%clk 0:01:29.5]}
37... g6 {[%clk 0:01:24.6]} 38. Rdc3 {[%clk 0:01:25.2]} 38... f5 {[%clk
0:01:18.5]} 39. Rd1 {[%clk 0:01:20.6]} 39... Kf7 {[%clk 0:01:05.1]} 40. Rd4
{[%clk 0:01:09.5]} 40... Rb5 {[%clk 0:01:05.3]} 41. Rdc4 {[%clk 0:01:09.3]}
41... a5 {[%clk 0:00:53.5]} 42. Kd4 {[%clk 0:01:08]} 42... Kf6 {[%clk
0:00:51.5]} 43. exf5 {[%clk 0:01:01.4]} 43... gxf5 {[%clk 0:00:52.4]} 44. gxf5
{[%clk 0:01:02]} 44... Rxf5 {[%clk 0:00:43.4]} 45. Re3 {[%clk 0:00:57.9]} 45...
Rf4+ {[%clk 0:00:38.5]} 46. Be4 {[%clk 0:00:53.5]} 46... Rh4 {[%clk 0:00:36.2]}
47. Kc3 {[%clk 0:00:48.2]} 47... Kg7 {[%clk 0:00:27.8]} 48. Bd3 {[%clk
0:00:47.1]} 48... Rxc4+ {[%clk 0:00:23.1]} 49. Kxc4 {[%clk 0:00:48]} 49... Kf6
{[%clk 0:00:21.8]} 50. Rf3+ {[%clk 0:00:44.9]} 50... Kg7 {[%clk 0:00:18.3]} 51.
Rf5 {[%clk 0:00:44]} 51... Rb4+ {[%clk 0:00:18.3]} 52. Kc3 {[%clk 0:00:43.7]}
52... Kh6 {[%clk 0:00:16.5]} 53. Rf6+ {[%clk 0:00:40.6]} 53... Kh5 {[%clk
0:00:16.9]} 54. Be2+ {[%clk 0:00:31.3]} 54... Kh4 {[%clk 0:00:16.8]} 55. Rh6+
{[%clk 0:00:32]} 55... Kg3 {[%clk 0:00:17.3]} 56. Bc4 {[%clk 0:00:32.7]} 56...
b5 {[%clk 0:00:13.7]} 57. Bd3 {[%clk 0:00:29.1]} 57... Rf4 {[%clk 0:00:10.7]}
58. Rxc6 {[%clk 0:00:28.7]} 58... b4+ {[%clk 0:00:10.7]} 59. Kd2 {[%clk
0:00:29.2]} 59... Rf2+ {[%clk 0:00:08.5]} 60. Ke3 {[%clk 0:00:28.9]} 60... Kxh3
{[%clk 0:00:09]} 61. Kxf2 {[%clk 0:00:27.9]} 1-0

[Event "Early-Titled-Tuesday-Blitz-May-14-2024"]
[Site "Chess.com"]
[Date "2024.05.14"]
[Round "2"]
[White "imdvb6307"]
[Black "nitpicker"]
[Result "1-0"]
[WhiteElo "2522"]
[BlackElo "2273"]
[TimeControl "180+1"]
[EndTime "8:18:43 PDT"]
[Termination "imdvb6307 won by resignation"]

1. d4 {[%clk 0:03:00.9]} 1... Nf6 {[%clk 0:02:59.1]} 2. Nf3 {[%clk 0:03:00.9]}
2... d5 {[%clk 0:02:57.6]} 3. e3 {[%clk 0:03:01]} 3... g6 {[%clk 0:02:56.1]} 4.
c4 {[%clk 0:02:59.6]} 4... c6 {[%clk 0:02:55]} 5. Nbd2 {[%clk 0:02:54.8]} 5...
Bg7 {[%clk 0:02:54.5]} 6. Be2 {[%clk 0:02:54.6]} 6... O-O {[%clk 0:02:54.3]} 7.
b4 {[%clk 0:02:53.6]} 7... Nbd7 {[%clk 0:02:44.8]} 8. Bb2 {[%clk 0:02:51.9]}
8... e6 {[%clk 0:02:39.7]} 9. O-O {[%clk 0:02:50.9]} 9... Qe7 {[%clk 0:02:39.9]}
10. a4 {[%clk 0:02:43.5]} 10... Ne4 {[%clk 0:02:39.1]} 11. b5 {[%clk 0:01:40]}
11... Rd8 {[%clk 0:02:38.1]} 12. Qc2 {[%clk 0:01:32.8]} 12... f5 {[%clk
0:02:34.9]} 13. Ba3 {[%clk 0:01:20.6]} 13... Qf6 {[%clk 0:02:23.6]} 14. cxd5
{[%clk 0:01:18.6]} 14... cxd5 {[%clk 0:01:56]} 15. Qc7 {[%clk 0:01:18.4]} 15...
Re8 {[%clk 0:01:31.3]} 16. a5 {[%clk 0:01:11.1]} 16... Nxd2 {[%clk 0:01:29.7]}
17. Nxd2 {[%clk 0:01:10.4]} 17... f4 {[%clk 0:01:30.6]} 18. Bd6 {[%clk 0:01:01]}
18... Bh6 {[%clk 0:01:05.7]} 19. Bxf4 {[%clk 0:00:58.7]} 19... Bxf4 {[%clk
0:01:05.1]} 20. Qxf4 {[%clk 0:00:58.9]} 20... Qxf4 {[%clk 0:01:04.6]} 21. exf4
{[%clk 0:00:59.2]} 21... Nf6 {[%clk 0:01:05]} 22. Rfc1 {[%clk 0:00:53.7]} 22...
Bd7 {[%clk 0:01:05.1]} 23. Rc7 {[%clk 0:00:52]} 23... Rab8 {[%clk 0:01:02.5]}
24. f3 {[%clk 0:00:47.3]} 24... Rec8 {[%clk 0:00:59.3]} 25. Rac1 {[%clk
0:00:46]} 25... Ne8 {[%clk 0:00:57.8]} 26. Rxc8 {[%clk 0:00:42.7]} 26... Rxc8
{[%clk 0:00:57]} 27. Rxc8 {[%clk 0:00:42.7]} 27... Bxc8 {[%clk 0:00:57.9]} 28.
b6 {[%clk 0:00:33.2]} 28... axb6 {[%clk 0:00:51.3]} 29. axb6 {[%clk 0:00:33]}
29... Nd6 {[%clk 0:00:49.8]} 30. Nb3 {[%clk 0:00:32.4]} 30... Nc4 {[%clk
0:00:35.8]} 31. Bxc4 {[%clk 0:00:30.8]} 31... dxc4 {[%clk 0:00:35.9]} 32. Nd2
{[%clk 0:00:29.7]} 32... c3 {[%clk 0:00:35.3]} 33. Nb3 {[%clk 0:00:30]} 33...
Bd7 {[%clk 0:00:31.5]} 34. Kf2 {[%clk 0:00:29.5]} 34... Kf8 {[%clk 0:00:24.8]}
35. Ke3 {[%clk 0:00:29]} 35... Ke7 {[%clk 0:00:18.5]} 36. Kd3 {[%clk 0:00:27.6]}
36... Kd6 {[%clk 0:00:18.9]} 37. Na5 {[%clk 0:00:25.9]} 37... Bc8 {[%clk
0:00:12.3]} 38. Kxc3 {[%clk 0:00:25.5]} 38... Kd5 {[%clk 0:00:11.7]} 39. Kd3
{[%clk 0:00:25.9]} 39... h5 {[%clk 0:00:10.7]} 40. h4 {[%clk 0:00:25.6]} 40...
Kd6 {[%clk 0:00:08.4]} 41. Ke4 {[%clk 0:00:25.3]} 41... Kd7 {[%clk 0:00:08.7]}
42. Ke5 {[%clk 0:00:24.7]} 42... Ke7 {[%clk 0:00:09.4]} 43. g3 {[%clk
0:00:23.6]} 43... Kd7 {[%clk 0:00:06.9]} 44. g4 {[%clk 0:00:24.1]} 44... hxg4
{[%clk 0:00:04.2]} 45. fxg4 {[%clk 0:00:23.8]} 45... Ke7 {[%clk 0:00:05.1]} 46.
h5 {[%clk 0:00:23.8]} 46... gxh5 {[%clk 0:00:04.8]} 47. gxh5 {[%clk 0:00:24.2]}
47... Kf7 {[%clk 0:00:05.4]} 48. Nb3 {[%clk 0:00:24.5]} 48... Ke7 {[%clk
0:00:04.5]} 49. Nc5 {[%clk 0:00:24.8]} 49... Kf7 {[%clk 0:00:03.7]} 50. h6
{[%clk 0:00:24.9]} 50... Kg6 {[%clk 0:00:03.9]} 51. Nxe6 {[%clk 0:00:24.6]}
51... Kxh6 {[%clk 0:00:04.5]} 52. Kf6 {[%clk 0:00:19.9]} 52... Kh7 {[%clk
0:00:03.1]} 53. d5 {[%clk 0:00:19.4]} 53... Kg8 {[%clk 0:00:03.1]} 54. d6 {[%clk
0:00:19.4]} 54... Bd7 {[%clk 0:00:03]} 55. Nc5 {[%clk 0:00:19.2]} 55... Bc6
{[%clk 0:00:02.8]} 56. Nxb7 {[%clk 0:00:19.1]} 1-0